Workbook

Sheet Sheet1
A1: original
A2: Nederlands | B2: English | C2: Deutsch | D2: Français | E2: Español | F2: Português | G2: Slovenščina
A3: =IF($E$3="Nederlands","EZ-DSR Calculator",IF($E$3="English","EZ-DSR Calculator",IF($E$3="Deutsch","EZ-DSR Calculator",IF($E$3="Français","EZ-DSR Calculator",IF($E$3="Español","EZ-DSR Calculator",IF($E$3="Português","Calculadora EZ-DSR",IF($E$3="Slovenščina","EZ-DSR Kalkulator"))))))) -> EZ-DSR Calculator | C3: v.191119 | E3: English
A4: =IF($E$3="Nederlands","Calibration ratio",IF($E$3="English","Calibration ratio",IF($E$3="Deutsch","Calibration ratio",IF($E$3="Français","Calibration ratio",IF($E$3="Español","Calibration ratio",IF($E$3="Português","Rácio de Calibração",IF($E$3="Slovenščina","Kalibracijsko razmerje"))))))) -> Calibration ratio | D4: 1 | E4: (ml/sec) | F4: (ml/ml)
A5: =IF($E$3="Nederlands","Volume (L)",IF($E$3="English","Volume (L)",IF($E$3="Deutsch","Volumen (L)",IF($E$3="Français","Volume (L)",IF($E$3="Español","Volumen (L)",IF($E$3="Português","Volume (L)",IF($E$3="Slovenščina","Volumen (L)"))))))) -> Volume (L) | B5: 100 | D5: =IF($E$3="Nederlands","Aantal dagen tussen metingen",IF($E$3="English","Days between measurements",IF($E$3="Deutsch","Tage zwischen den Messungen",IF($E$3="Français","Jours entre les mesures",IF($E$3="Español","Días entre mediciones",IF($E$3="Português","Dias entre Medições",IF($E$3="Slovenščina","Dni med merjanjem"))))))) -> Days between measurements | F5: 1 | G5: =IF($E$3="Nederlands","pump setting",IF($E$3="English","pump setting",IF($E$3="Deutsch","pump setting",IF($E$3="Français","pump setting",IF($E$3="Español","pump setting",IF($E$3="Português","Definições Bomba Dosagem")))))) -> pump setting | H5: =IF($E$3="Nederlands","Cor. Gewicht (gr)",IF($E$3="English","Cor. Weight (gr)",IF($E$3="Deutsch","Kor. Gewicht (gr)",IF($E$3="Français","Cor. Poids (gr)",IF($E$3="Español","Cor. Peso (gr)",IF($E$3="Português","Peso de Correcção (gr)",IF($E$3="Slovenščina","Popra-vek teža (gr)"))))))) -> Cor. Weight (gr) | I5: Ca/Kh ratio (native) | K5: SG
A6: =IF($E$3="Nederlands","Produkt",IF($E$3="English","Product",IF($E$3="Deutsch","Product",IF($E$3="Français","Product",IF($E$3="Español","Product",IF($E$3="Português","Produto",IF($E$3="Slovenščina","Izdelek"))))))) -> Product | B6: =IF($E$3="Nederlands","Waarde",IF($E$3="English","Value",IF($E$3="Deutsch","Wert",IF($E$3="Français","Valeur",IF($E$3="Español","Valor",IF($E$3="Português","Valor",IF($E$3="Slovenščina","Vred-nost"))))))) -> Value | C6: =IF($E$3="Nederlands","Doel",IF($E$3="English","Setpoint",IF($E$3="Deutsch","SollWert",IF($E$3="Français","But",IF($E$3="Español","punto fijo",IF($E$3="Português","Objec-tivo",IF($E$3="Slovenščina","Končna vrednost"))))))) -> Setpoint | D6: dkh / ppm | E6: =IF($E$3="Nederlands","Correctie / start (ml)",IF($E$3="English","Correction (ml)",IF($E$3="Deutsch","Korrektur (ml)",IF($E$3="Français","Correction (ml)",IF($E$3="Español","Corrección (ml)",IF($E$3="Português","Correcção (ml)",IF($E$3="Slovenščina","Popravek (ml)"))))))) -> Correction (ml) | F6: =IF($E$3="Nederlands","Dagelijks (ml)",IF($E$3="English","Daily (ml)",IF($E$3="Deutsch","Täglich (ml)",IF($E$3="Français","Quotidien (ml)",IF($E$3="Español","Diario (ml)",IF($E$3="Português","Consumo Diário (ml)",IF($E$3="Slovenščina","Dnevno (ml)"))))))) -> Daily (ml) | H6: =IF($E$3="Nederlands","Liters",IF($E$3="English","Liters",IF($E$3="Deutsch","Liter",IF($E$3="Français","litres",IF($E$3="Español","Litros"))))) -> Liters
A7: EZ-Buffer | B7: x | C7: 9 | D7: =IF($B$7="x",0.24,C7-B7) -> 0.24 | E7: =($B$5/100)*$D$7*16.7 -> 4.008 | F7: =+$E$7/$F$5 -> 4.008 | G7: =F7/$D$4 -> 4.008 | H7: =E7*K7 -> 4.372728 | I7: =D8/D7 -> 5.8 | K7: 1.091
A8: EZ-Calcium | B8: x | C8: 440 | D8: =IF($B$8="x",(5.8*D7),C8-B8) -> 1.392 | E8: =($B$5/100)*$D$8*0.578 -> 0.804576 | F8: =+$E$8/$F$5 -> 0.804576 | G8: =F8/$D$4 -> 0.804576 | H8: 1.09824624 | I8: Buf/Cal ratio | K8: 1.365
A9: EZ-Trace | B9: max. | C9: =6*(B5/100) -> 6 | D9: - | E9: =E8/2 -> 0.402288 | F9: =F8/2 -> 0.402288 | G9: 0.402288 | H9: 0.480331872 | K9: 1.194
A10: PO4+ | B10: 0 | D10: 0.007 | E10: =($B$5/100)*(D10-B10)*100*0.1 -> 0.07 | F10: =+E10 -> 0.07 | G10: 0.07 | H10: 0
A11: NO3+ | B11: 0 | D11: 0.1 | E11: =($B$5/100)*(D11-B11)*1.44 -> 0.144 | F11: =+E11 -> 0.144 | G11: 0.144 | H11: 0
A12: EZ-Carbon | B12: max. | C12: =($B$5/100)*$E$35 -> 12.38347284 | D12: D3 | E12: =IF(D12="D1",($B$5/100)*E21,IF(D12="D2",($B$5/100)*E22,IF(D12="D3",($B$5/100)*E23,IF(D12="D4",($B$5/100)*E24,IF(D12="D5",($B$5/100)*E25,IF(D12="D6",($B$5/100)*E26,IF(D12="D7",($B$5/100)*E27,IF(D12="D8",($B$5/100)*E28,IF(D12="D9",($B$5/100)*E29,IF(D12="D10",($B$5/100)*E30,IF(D12="D11",($B$5/100)*E31,IF(D12="D12",($B$5/100)*E32,IF(D12="D13",($B$5/100)*E33,IF(D12="D14",($B$5/100)*E34,IF(D12="D15",($B$5/100)*E35))))))))))))))) -> 1.44 | F12: =+E12 -> 1.44 | G12: 1.44 | H12: 1.472688 | I12: =E7/E8 -> 4.981505787 | K12: 1.0227
A13: Amino/C (weekly dose) | E13: =(B5/100)*1 -> 1 | F13: =+E13 -> 1 | G13: ml
A14: =IF($E$3="Nederlands","indien nodig, start dosering berekenen door bij waarde * in te vullen. Correcties en (dagelijks)verbruik berekenen door de gemeten waarde en het aantal dagen vanaf de laatste meting in te vullen. ",IF($E$3="English","When required, calculate startdosing by typing x at Value. Corrections and (daily) consumption can be calculated by submitting the measured value and the day between measurements.",IF($E$3="Deutsch","Berechnen Sie bei Bedarf die Startdosierung, indem Sie x bei Wert eingeben. Korrekturen und (Tages-) Verbrauch können berechnet werden, indem der Messwert und der Tag zwischen den Messungen übermittelt werden.",IF($E$3="Français","Au besoin, calculez le début de la dose en tapant x comme valeur. Les corrections et la consommation (journalière) peuvent être calculées en soumettant la valeur mesurée et le jour entre les mesures.",IF($E$3="Español","Cuando sea necesario, calcule la dosificación inicial escribiendo x en Value. Las correcciones y el consumo (diario) pueden calcularse enviando el valor medido y el día entre mediciones.",IF($E$3="Português","Quando necessário, calcule a dose inicial digitando x em Valor. Valores de correcção e consumo diário, podem ser calculados usando os valores medidos(resultado do teste de água) e os dias entre medições.",IF($E$3="Slovenščina","Po potrebi izračunajte začetno odmerjanje tako, da vtipkate x pri vrednosti. Popravke in (dnevno) porabo lahko izračunate tako, da dodate izmerjeno vrednost in dan med meritvami."))))))) -> When required, calculate startdosing by typing x at Value. Corrections and (daily) consumption can be calculated by submitting the measured value and the day between measurements.
A15: =IF($E$3="Nederlands","EZ Buffer/EZCalcium ratio = 5:1 (ml). Deze verhouding kan aangepast worden aan het werkelijk verbruik.",IF($E$3="English","EZ Buffer / EZCalcium ratio = 5:1 (ml). This ratio can be adjusted to the actual consumption.",IF($E$3="Deutsch","EZ-Buffer / EZCalcium Verhältnis = 5:1 (ml). Dieses Verhältnis kann an den tatsächlichen Verbrauch angepasst werden.",IF($E$3="Français","Rapport tampon EZ / EZCalcium = 5:1 (ml). Ce ratio peut être ajusté à la consommation réelle.",IF($E$3="Español","EZ Buffer / EZCalcium ratio = 5:1 (ml). Esta relación se puede ajustar al consumo real.",IF($E$3="Português","EZ Buffer / EZ Calcium ratio = 5:1(ml). Este rácio pode ser ajustado tendo em conta o atual consumo. ",IF($E$3="Slovenščina","Razmerje EZ Buffer / EZ Calcium = 5: 1 (ml). To razmerje je mogoče prilagoditi dejanski porabi."))))))) -> EZ Buffer / EZCalcium ratio = 5:1 (ml). This ratio can be adjusted to the actual consumption.
A16: =IF($E$3="Nederlands","EZ-Trace = 50% van EZ-Calcium. (of werkelijk verbruik) ",IF($E$3="English","EZ-Trace = 50% of EZ-Calcium. (or actual consumption)",IF($E$3="Deutsch","EZ-Trace = 50% oder EZ-Calcium. (oder tatsächlicher Verbrauch)",IF($E$3="Français","EZ-Trace = 50% ou EZ-Calcium. (ou consommation réelle)",IF($E$3="Español","EZ-Trace = 50% o EZ-Calcium. (o consumo real)",IF($E$3="Português","EZ-Trace = 50% ou EZ-Cálcio. (ou consumo real)",IF($E$3="Slovenščina","EZ-sled = 50% ali EZ-kalcij. (ali dejanska poraba)"))))))) -> EZ-Trace = 50% of EZ-Calcium. (or actual consumption)
A17: =IF($E$3="Nederlands","(1) Verspreid de geadviseerde correcties over meerdere dagen. (2) Vermeerdert de huidige dosering met de berekende dagelijks dosering.",IF($E$3="English","(1) Spread the recommended corrections over several days. (2) Increase the current dose by the calculated daily dose.",IF($E$3="Deutsch","(1) Verteilen Sie die empfohlenen Korrekturen auf mehrere Tage. (2) Erhöhen Sie die aktuelle Dosis um die berechnete Tagesdosis.",IF($E$3="Français","(1) Répartissez les corrections recommandées sur plusieurs jours. (2) Augmentez la dose actuelle de la dose quotidienne calculée.",IF($E$3="Español","(1) Extienda las correcciones recomendadas durante varios días. (2) Aumente la dosis actual en la dosis diaria calculada.",IF($E$3="Português","(1) Espalhe as correções recomendadas por vários dias. (2) Aumente a dose atual pela dose diária calculada.",IF($E$3="Slovenščina","(1) Priporočljive popravke razmažite po več dneh. (2) Povečajte trenutni odmerek za izračunani dnevni odmerek."))))))) -> (1) Spread the recommended corrections over several days. (2) Increase the current dose by the calculated daily dose.
A18: =IF($E$3="Nederlands","Correcties brengen de waarden op peil en kunnen het eenvoudigst met FullDSR producten worden uitgevoerd.",IF($E$3="English","Corrections bring the values up to date and are easiest to do with FullDSR products.",IF($E$3="Deutsch","Korrekturen bringen die Werte auf den neuesten Stand und sind mit FullDSR-Produkten am einfachsten durchzuführen.",IF($E$3="Français","Les corrections apportent les valeurs à jour et sont plus faciles à faire avec les produits FullDSR.",IF($E$3="Español","Las correcciones actualizan los valores y son más fáciles de hacer con los productos FullDSR.",IF($E$3="Português","As correções atualizam os valores e são mais fáceis de fazer com os produtos FullDSR.",IF($E$3="Slovenščina","Popravki posodabljajo vrednosti in jih je najlažje narediti pri izdelkih FullDSR."))))))) -> Corrections bring the values up to date and are easiest to do with FullDSR products.
A19: =IF($E$3="Nederlands","EZ-Carbon dosering opvoeren (D1-15), totdat PO4 en NO3 onder controle zijn. Verlaagd de dosering als het doel bereikt is. (Maak gebruik CarbonVS indien PO4 onmeetbaar is).",IF($E$3="English","Increase EZ-Carbon dosage (D1-15) until PO4 and NO3 are under control. Decrease when target is reached. (Use CarbonVS if PO4 is immeasurable).",IF($E$3="Deutsch","Erhöhen Sie die EZ-Carbon Dosierung (D1-15), bis PO4 und NO3 unter Kontrolle sind. (Verwenden Sie CarbonVS, wenn PO4 nicht messbar ist).",IF($E$3="Français","Augmentez la dose de EZ-Carbon (D1-15) jusqu'à ce que PO4 et NO3 soient sous contrôle. (Utilisez CarbonVS si PO4 est incommensurable).",IF($E$3="Español","Aumente la dosis de EZ-Carbon (D1-15) hasta que PO4 y NO3 estén bajo control. (Use CarbonVS si PO4 no se puede medir).",IF($E$3="Português","Incremente a dosagem de EZ-Carbon (D1-15) até PO4 e NO3 estarem sob controlo. Decremente o valor da dosagem assim que atingir o objectivo. (Use CarbonVS se PO4 for incomensurável). ",IF($E$3="Slovenščina","Povečajte odmerek EZ-Carbon (D1-15), dokler nista PO4 in NO3 pod nadzorom. Zmanjšajte, ko je cilj dosežen. (Uporabite CarbonVS, če je PO4 neizmerljiv)."))))))) -> Increase EZ-Carbon dosage (D1-15) until PO4 and NO3 are under control. Decrease when target is reached. (Use CarbonVS if PO4 is immeasurable).
A20: =IF($E$3="Nederlands","Calibration ratio is om instelling te berekenen die afwijken van de 1:1 ml/ml of ml/s verhouding.",IF($E$3="English","Calibration ratio is to calculate setting that deviate from the 1:1 ml /ml or ml /s ratio.",IF($E$3="Deutsch","Das 'Calibration ratio' dient zur Berechnung der Einstellung, die von dem Verhältnis 1:1 ml / ml oder ml /s abweicht.",IF($E$3="Français","Le 'Calibration ratio' consiste à calculer un réglage qui s'écarte du rapport 1:1 ml / ml ou ml /s.",IF($E$3="Español","'Calibration ratio' es calcular una configuración que se desvía de la relación 1:1 ml /ml o ml /s.",IF($E$3="Português","O rácio de calibração é calculado através do relação 1:1 ml/ml ou ml/s ",IF($E$3="Slovenščina","Kalibracijsko razmerje je izračunavanjedoziranj, ki odstopajo od razmerja 1:1 ml/ml ali ml/s."))))))) -> Calibration ratio is to calculate setting that deviate from the 1:1 ml /ml or ml /s ratio.
D21: D1 | E21: 1
D22: D2 | E22: =E21*1.2 -> 1.2
D23: D3 | E23: =E22*1.2 -> 1.44
D24: D4 | E24: 1.728
D25: D5 | E25: 2
D26: D6 | E26: 2.4
D27: D7 | E27: 2.88
D28: D8 | E28: 3.456
D29: D9 | E29: 4.1472
D30: D10 | E30: 4.97664
D31: D11 | E31: 5.971968
D32: D12 | E32: 7.1663616
D33: D13 | E33: 8.59963392
D34: D14 | E34: 10.3195607
D35: D15 | E35: 12.38347284
A36: =IF($E$3="Nederlands","De EZ calculator is niet noodzakelijk, maar kan gebruikt worden om (start) doseringen te berekenen",IF($E$3="English","The EZ calculator is not necessary, but can be used to calculate (start) dosages",IF($E$3="Deutsch","Der EZ-Rechner ist nicht notwendig, kann aber zur Berechnung von (Start-) Dosierungen verwendet werden",IF($E$3="Français","La calculatrice EZ n'est pas nécessaire, mais peut être utilisée pour calculer (démarrer) des dosages",IF($E$3="Español","La calculadora EZ no es necesaria, pero se puede usar para calcular (comenzar) las dosis",IF($E$3="Português","A calculadora EZ não é extritamente necessária, mas poderá ser utilizada para calcular as dosagens de arranque. ",IF($E$3="Slovenščina","EZ Kalkulator ni potreben, vendar ga je mogoče uporabiti za izračun (začetnih) odmerkov"))))))) -> The EZ calculator is not necessary, but can be used to calculate (start) dosages
A37: =IF($E$3="Nederlands","Verplicht lezen",IF($E$3="English","Mandatory reading",IF($E$3="Deutsch","Pflichtlektüre",IF($E$3="Français","Lecture obligatoire",IF($E$3="Español","Lectura obligatoria",IF($E$3="Português","Leitura obrigatória",IF($E$3="Slovenščina","Obvezno branje"))))))) -> Mandatory reading
A38: =IF($E$3="Nederlands","EZ Calculator 2.0 discussie topic",IF($E$3="English","EZ Calculator 2.0 discussion topic",IF($E$3="Deutsch","Diskussionsthema zu EZ Calculator 2.0",IF($E$3="Français","Sujet de discussion EZ Calculator 2.0",IF($E$3="Español","Tema de discusión de EZ Calculator 2.0",IF($E$3="Português","EZ Calculator 2.0 Forúm de Discussão",IF($E$3="Slovenščina","EZ Kalkulator 2.0 tema na Forumu"))))))) -> EZ Calculator 2.0 discussion topic
